bitfinex/quotes_BTCUSD_20240728
["timestamp","ask_amount","ask_price","bid_price","bid_amount"]
[1722130231275,0.00913034,68275.0,68273.0,0.1181]
[1722130231473,0.00913034,68275.0,68273.0,0.000924]
[1722130231672,0.00113514,68276.0,68273.0,0.000924]
[1722130231914,0.00913041,68275.0,68274.0,0.117174]
[1722130232133,0.00808372,68277.0,68274.0,0.1392]
[1722130232336,0.00808372,68277.0,68276.0,0.585855]
[1722130233788,0.00808372,68277.0,68276.0,0.589855]
[1722130234409,0.00808372,68277.0,68276.0,0.824197]
[1722130234623,0.00808372,68277.0,68276.0,0.829197]
[1722130236227,0.00808372,68277.0,68276.0,0.594855]
[1722130237871,0.00808372,68277.0,68276.0,0.360513]
[1722130238034,0.06482413,68277.0,68276.0,0.360513]
[1722130238490,0.06482413,68277.0,68276.0,0.594855]
[1722130239495,0.06482413,68277.0,68276.0,0.360513]
[1722130240097,0.00808372,68277.0,68276.0,0.126171]
[1722130240299,0.06559822,68277.0,68276.0,0.126171]
[1722130240643,0.00808372,68277.0,68276.0,0.126171]
[1722130241299,0.06559847,68277.0,68276.0,0.126171]
[1722130242515,0.06559847,68277.0,68276.0,0.009]
[1722130242516,0.00808372,68277.0,68276.0,0.009]
[1722130242973,0.06565188,68277.0,68276.0,0.009]
[1722130243302,0.06566189,68277.0,68276.0,0.009]
[1722130244129,0.06566189,68277.0,68276.0,0.126171]
[1722130244332,0.06566189,68277.0,68276.0,0.594855]
[1722130244581,0.06566189,68277.0,68276.0,0.499113]
[1722130245518,0.06566189,68277.0,68276.0,0.264771]
[1722130246187,0.06566189,68277.0,68276.0,0.009]
[1722130246512,0.41716989,68277.0,68276.0,0.009]
[1722130246659,0.41608534,68277.0,68276.0,0.009]
[1722130247427,0.41608534,68277.0,68276.0,0.004]
[1722130247628,0.117173,68275.0,68274.0,0.000924]
[1722130247828,0.17366662,68275.0,68274.0,0.000924]
[1722130249811,0.117173,68275.0,68274.0,0.000924]
[1722130250008,0.17342551,68275.0,68274.0,0.000924]
[1722130250205,0.17342551,68275.0,68274.0,0.005924]
[1722130250393,0.1734029,68275.0,68274.0,0.005924]
[1722130250593,0.1734029,68275.0,68274.0,0.009924]
[1722130252023,0.4077489,68275.0,68274.0,0.009924]
[1722130252223,0.40786394,68275.0,68274.0,0.009924]
[1722130252625,0.49688136,68275.0,68274.0,0.009924]
[1722130252826,0.40786394,68275.0,68274.0,0.009924]
[1722130253281,0.49672473,68275.0,68274.0,0.009924]
[1722130255449,0.73107073,68275.0,68274.0,0.009924]
[1722130255616,1.08591673,68275.0,68274.0,0.009924]
[1722130256204,0.117184,68269.0,68267.0,0.06930786]
[1722130256402,0.0842,68273.0,68267.0,0.06930786]
[1722130256603,0.1205,68275.0,68267.0,0.06930786]
[1722130256604,0.117185,68268.0,68267.0,0.06930786]
[1722130256832,0.17312287,68268.0,68267.0,0.06930786]
[1722130257438,0.17312287,68268.0,68267.0,0.07830786]
[1722130257816,0.17312287,68268.0,68267.0,0.06930786]
[1722130258017,0.17312287,68268.0,68267.0,0.07930786]
[1722130258254,0.17312287,68268.0,68267.0,0.08430786]
[1722130258602,0.17312287,68268.0,68267.0,0.015]
[1722130258603,0.55775244,68268.0,68267.0,0.015]
[1722130258803,0.79212244,68268.0,68267.0,0.015]
[1722130259209,0.79212244,68268.0,68267.0,0.0914]
[1722130259418,0.55775244,68268.0,68267.0,0.0864]
[1722130259807,0.55773108,68268.0,68267.0,0.1422]
[1722130260007,0.55873108,68268.0,68267.0,0.1522]
[1722130260133,0.55985294,68268.0,68267.0,0.1592]
[1722130260334,0.55885294,68268.0,68267.0,0.1492]
[1722130260534,0.55885294,68268.0,68267.0,0.1392]
[1722130260785,0.55985294,68268.0,68267.0,0.1472]
[1722130260993,0.55985294,68268.0,68267.0,0.015]
[1722130261896,0.50381457,68268.0,68267.0,0.015]
[1722130262187,0.55891893,68268.0,68267.0,0.015]
[1722130265341,0.55906438,68268.0,68267.0,0.015]
[1722130266227,0.79343438,68268.0,68267.0,0.015]
[1722130266625,1.16840438,68268.0,68267.0,0.015]
[1722130266827,1.02206211,68268.0,68267.0,0.015]
[1722130267390,0.64709211,68268.0,68267.0,0.015]
[1722130267572,0.64571492,68268.0,68267.0,0.007]
[1722130267926,0.351559,68267.0,68266.0,0.000924]
[1722130268131,0.40680881,68267.0,68266.0,0.000924]
[1722130268335,0.117186,68267.0,68266.0,0.000924]
[1722130268533,0.17214153,68267.0,68266.0,0.000924]
[1722130268958,0.17213994,68267.0,68266.0,0.000924]
[1722130270684,0.17213994,68267.0,68266.0,0.004924]
[1722130271099,0.17213994,68267.0,68266.0,0.007924]
[1722130271808,0.39956773,68267.0,68266.0,0.007924]
[1722130272031,0.16519473,68267.0,68266.0,0.007924]
[1722130272266,0.04800873,68267.0,68266.0,0.007924]
[1722130272497,0.04800873,68267.0,68266.0,0.00510341]
[1722130273796,0.16519473,68267.0,68266.0,0.00510341]
[1722130275671,0.39956773,68267.0,68266.0,0.00510341]
[1722130278261,0.39926736,68267.0,68266.0,0.00510341]
[1722130278736,0.399263,68267.0,68266.0,0.00510341]
[1722130279643,0.633636,68267.0,68266.0,0.00510341]
[1722130280722,0.63347754,68267.0,68266.0,0.00510341]
[1722130283030,0.65646666,68267.0,68266.0,0.00510341]
[1722130284655,0.60892112,68267.0,68266.0,0.00510341]
[1722130284869,0.65553914,68267.0,68266.0,0.00510341]
[1722130285623,0.73537983,68267.0,68266.0,0.00510341]
[1722130288086,0.73533585,68267.0,68266.0,0.00510341]
[1722130288670,0.73543474,68267.0,68266.0,0.00510341]
[1722130291450,0.60892112,68267.0,68266.0,0.00510341]
[1722130291735,0.73569114,68267.0,68266.0,0.00510341]
[1722130293226,0.60892112,68267.0,68266.0,0.00510341]
[1722130293425,0.73560275,68267.0,68266.0,0.00510341]
[1722130294851,0.73556494,68267.0,68266.0,0.00510341]
[1722130295253,1.19303794,68267.0,68266.0,0.00510341]
[1722130295464,1.34329751,68267.0,68266.0,0.00510341]
[1722130296507,0.820319,68266.0,68265.0,0.000924]
[1722130296788,1.09722239,68266.0,68265.0,0.000924]
[1722130297993,1.03167857,68266.0,68265.0,0.000924]
[1722130298165,1.15971429,68266.0,68265.0,0.000924]
[1722130298731,1.1597501,68266.0,68265.0,0.000924]
[1722130299066,1.1737501,68266.0,68265.0,0.001924]
[1722130299264,1.21594072,68266.0,68265.0,0.001924]
[1722130301417,1.35785557,68266.0,68265.0,0.001924]
[1722130301621,1.48593333,68266.0,68265.0,0.001924]
[1722130302721,1.47993333,68266.0,68265.0,0.001924]
[1722130302925,1.47193333,68266.0,68265.0,0.000924]
[1722130303124,1.47993333,68266.0,68265.0,0.001924]
[1722130303371,1.9645699,68266.0,68265.0,0.001924]
[1722130303887,1.99649984,68266.0,68265.0,0.001924]
[1722130304493,2.00849984,68266.0,68265.0,0.002924]
[1722130304691,2.00049984,68266.0,68265.0,0.001924]
[1722130304898,2.01449984,68266.0,68265.0,0.001924]
[1722130305108,2.00249984,68266.0,68265.0,0.000924]
[1722130305309,2.01649984,68266.0,68265.0,0.001924]
[1722130305516,2.03049984,68266.0,68265.0,0.001924]
[1722130307656,2.03027252,68266.0,68265.0,0.001924]
[1722130307890,2.17837683,68266.0,68265.0,0.001924]
[1722130309101,2.03027252,68266.0,68265.0,0.001924]
[1722130309618,0.586087,68249.0,68248.0,0.000924]
[1722130309864,1.08729701,68249.0,68248.0,0.000924]
[1722130310213,1.32173201,68249.0,68248.0,0.000924]
[1722130310404,1.32147303,68249.0,68248.0,0.000924]
[1722130311009,1.32347303,68249.0,68248.0,0.000924]
[1722130311174,1.37123737,68249.0,68248.0,0.000924]
[1722130311378,1.37523737,68249.0,68248.0,0.000924]
[1722130311576,1.36923737,68249.0,68248.0,0.000924]
[1722130311981,1.33447303,68249.0,68248.0,0.000924]
[1722130312324,1.32747303,68249.0,68248.0,0.000924]
[1722130312535,1.33047303,68249.0,68248.0,0.000924]
[1722130312957,1.55590803,68249.0,68248.0,0.000924]
[1722130313621,1.32147303,68249.0,68248.0,0.000924]
[1722130313820,1.46162033,68249.0,68248.0,0.000924]
[1722130314120,1.38942033,68249.0,68248.0,0.000924]
[1722130314351,1.46427068,68249.0,68248.0,0.000924]
[1722130314525,1.57655838,68249.0,68248.0,0.000924]
[1722130314668,1.34212338,68249.0,68248.0,0.000924]
[1722130315073,1.57655838,68249.0,68248.0,0.000924]
[1722130316897,1.58552601,68249.0,68248.0,0.000924]
[1722130317098,1.73578558,68249.0,68248.0,0.000924]
[1722130317413,1.73614279,68249.0,68248.0,0.000924]
[1722130318037,1.73620432,68249.0,68248.0,0.000924]
[1722130319922,1.60954377,68249.0,68248.0,0.000924]
[1722130320148,1.73666472,68249.0,68248.0,0.000924]
[1722130320783,1.73682144,68249.0,68248.0,0.000924]
[1722130321211,1.57482144,68249.0,68248.0,0.000924]
[1722130321449,1.65902144,68249.0,68248.0,0.000924]
[1722130323118,1.65850182,68249.0,68248.0,0.000924]
[1722130324096,0.820596,68243.0,68242.0,0.11975767]
[1722130324347,1.18181362,68243.0,68242.0,0.11975767]
[1722130325357,1.18681362,68243.0,68242.0,0.11975767]
[1722130326196,1.19081362,68243.0,68242.0,0.11975767]
[1722130326346,1.18963494,68243.0,68242.0,0.11975767]
[1722130326892,1.1901259,68243.0,68242.0,0.11975767]
[1722130327254,1.32416445,68243.0,68242.0,0.11975767]
[1722130327714,1.1901259,68243.0,68242.0,0.11975767]
[1722130328712,1.06405557,68243.0,68242.0,0.11975767]
[1722130328905,1.19016194,68243.0,68242.0,0.11975767]
[1722130329758,1.19004622,68243.0,68242.0,0.11975767]
[1722130330116,1.18997826,68243.0,68242.0,0.11975767]
[1722130330520,1.18997826,68243.0,68239.0,0.080624]
[1722130330521,0.820631,68240.0,68239.0,0.080624]
[1722130330872,1.18101326,68240.0,68239.0,0.080624]
[1722130331995,1.18201326,68240.0,68239.0,0.080624]
[1722130332780,1.05609057,68240.0,68239.0,0.080624]
[1722130332980,0.86338303,68240.0,68239.0,0.080624]
[1722130333277,0.94758303,68240.0,68239.0,0.143024]
[1722130334542,0.95058303,68240.0,68239.0,0.143024]
[1722130336354,0.82462457,68240.0,68239.0,0.143024]
[1722130336552,0.95296083,68240.0,68239.0,0.143024]
[1722130338271,0.95280588,68240.0,68239.0,0.143024]
[1722130339106,0.95281275,68240.0,68239.0,0.143024]
[1722130341618,0.13218818,68240.0,68239.0,0.143024]
[1722130341778,0.13218818,68240.0,68239.0,0.494729]
[1722130341956,0.13218818,68240.0,68239.0,0.729199]
[1722130342337,0.004,68240.0,68239.0,0.729199]
[1722130342549,0.1335419,68240.0,68239.0,0.729199]
[1722130342845,0.05223321,68240.0,68239.0,0.729199]
[1722130343048,0.05123321,68240.0,68239.0,0.729199]
[1722130343325,0.05223321,68240.0,68239.0,0.733199]
[1722130343994,0.04923321,68240.0,68239.0,0.733199]
[1722130344180,0.05023321,68240.0,68239.0,0.264259]
[1722130344381,0.05023321,68240.0,68239.0,0.498729]
[1722130344897,0.05023321,68240.0,68239.0,0.729199]
[1722130345083,0.05123321,68240.0,68239.0,0.733199]
[1722130345518,0.04913698,68240.0,68239.0,0.967669]
[1722130345890,0.001,68240.0,68239.0,0.967669]
[1722130346089,0.001,68240.0,68239.0,0.963669]
[1722130346315,0.0842,68252.0,68251.0,0.257414]
[1722130346502,0.13312305,68252.0,68251.0,0.257414]
[1722130346714,0.13312305,68252.0,68251.0,0.1402]
[1722130347504,0.13312305,68252.0,68251.0,0.257414]
[1722130347848,0.13295391,68252.0,68251.0,0.257414]
[1722130348206,0.04875391,68252.0,68251.0,0.257414]
[1722130348632,0.04889107,68252.0,68251.0,0.257414]
[1722130348842,0.04889107,68254.0,68251.0,0.257414]
[1722130348960,0.04889107,68254.0,68251.0,0.72627]
[1722130348961,0.006,68252.0,68251.0,0.72627]
[1722130349413,0.05489107,68252.0,68251.0,0.72627]
[1722130349577,0.05389107,68252.0,68251.0,0.491842]
[1722130350379,0.05389107,68252.0,68251.0,0.257414]
[1722130351763,0.05357778,68252.0,68251.0,0.1402]
[1722130352497,0.05957778,68252.0,68251.0,0.1402]
[1722130352879,0.05957778,68252.0,68251.0,0.257414]
[1722130353081,0.05957778,68252.0,68251.0,0.491842]
[1722130353575,0.05922859,68252.0,68251.0,0.491842]
[1722130354382,0.05905222,68252.0,68251.0,0.491842]
[1722130354579,0.05905222,68252.0,68251.0,0.960698]
[1722130354580,0.01082363,68252.0,68251.0,0.960698]
[1722130354785,0.01082363,68252.0,68251.0,1.11095757]
[1722130355199,0.01082363,68252.0,68251.0,1.36838557]
[1722130355533,0.006,68252.0,68251.0,1.46838557]
[1722130355741,0.00084,68267.0,68260.0,0.820389]
[1722130355962,0.00084,68267.0,68260.0,1.284486]
[1722130356164,0.00084,68267.0,68260.0,1.307486]
[1722130357190,0.00084,68267.0,68260.0,1.223286]
[1722130357776,0.00184,68261.0,68260.0,1.228286]
[1722130357975,0.00284,68261.0,68260.0,1.235286]
[1722130360631,0.00284,68261.0,68260.0,0.977889]
[1722130362810,0.00284,68261.0,68260.0,0.98663328]
[1722130366220,0.00284,68261.0,68260.0,1.00963328]
[1722130366608,0.00284,68261.0,68260.0,1.24403028]
[1722130370863,0.00284,68261.0,68260.0,1.49628985]
[1722130371834,0.00284,68261.0,68260.0,1.48428985]
[1722130371835,0.00084,68261.0,68260.0,1.48428985]
[1722130372052,0.00184,68261.0,68260.0,1.48928985]
[1722130372176,0.00184,68261.0,68260.0,1.49528985]
[1722130372177,0.00284,68261.0,68260.0,1.49528985]
[1722130372377,0.00084,68267.0,68266.0,1.201696]
[1722130372618,0.00084,68267.0,68266.0,1.68545557]
[1722130372819,0.00084,68267.0,68266.0,1.91983257]
[1722130373820,0.00084,68267.0,68266.0,1.93183257]
[1722130374021,0.00084,68267.0,68266.0,1.71145557]
[1722130374289,0.00084,68267.0,68266.0,1.69745557]
[1722130374439,0.00084,68267.0,68266.0,1.68345557]
[1722130374763,0.00084,68267.0,68266.0,1.71145557]
[1722130378028,0.00084,68267.0,68266.0,1.7110559]
[1722130385702,0.00084,68267.0,68266.0,1.7130559]
[1722130386311,0.00084,68267.0,68266.0,1.7120559]
[1722130386568,0.00084,68267.0,68266.0,1.9474329]
[1722130386867,0.00808372,68277.0,68276.0,1.054539]
[1722130387015,0.00808372,68277.0,68276.0,1.297139]
[1722130388400,0.00808372,68277.0,68276.0,1.308139]
[1722130389004,0.00808372,68277.0,68276.0,1.319139]
[1722130392218,0.09712359,68287.0,68278.0,0.820176]
[1722130393080,0.09712359,68287.0,68278.0,0.904376]
[1722130393314,0.01532359,68287.0,68278.0,0.913376]
[1722130393506,0.01532359,68287.0,68278.0,0.922376]
[1722130393962,0.01532359,68287.0,68286.0,0.58577]
[1722130394177,0.06259261,68287.0,68286.0,0.58577]
[1722130394370,0.06259261,68287.0,68286.0,0.820078]
[1722130395274,0.00723987,68287.0,68286.0,0.820078]
[1722130395449,0.05486848,68287.0,68286.0,0.820078]
[1722130395661,0.00826,68288.0,68287.0,0.820067]
[1722130396262,0.05602717,68288.0,68287.0,0.820067]
[1722130396828,0.05623258,68288.0,68287.0,0.820067]
[1722130398720,0.05623258,68288.0,68287.0,0.908267]
[1722130399793,0.05619023,68288.0,68287.0,0.908267]
[1722130403155,0.05406967,68288.0,68287.0,0.908267]
[1722130403642,0.05406971,68288.0,68287.0,0.908267]
[1722130404214,0.05406971,68288.0,68287.0,0.91695268]
[1722130405006,0.05406971,68288.0,68287.0,0.83275268]
[1722130406602,0.05341434,68288.0,68287.0,0.83275268]
[1722130407540,0.05341434,68288.0,68287.0,1.05545268]
[1722130409659,0.05353917,68288.0,68287.0,1.05545268]
[1722130412560,0.05353917,68288.0,68287.0,1.05145268]
[1722130412754,0.05353917,68288.0,68287.0,1.06045268]
[1722130412979,0.05360435,68288.0,68287.0,1.06945268]
[1722130413205,0.05360435,68288.0,68287.0,1.05145268]
[1722130413414,0.00826,68288.0,68287.0,1.05145268]
[1722130413566,0.05360435,68288.0,68287.0,1.06145268]
[1722130413764,0.00826,68288.0,68287.0,1.06145268]
[1722130414019,0.05377851,68288.0,68287.0,1.06145268]
[1722130414545,0.05377851,68288.0,68287.0,1.07145268]
[1722130415367,0.05377851,68288.0,68287.0,1.05145268]
[1722130415576,0.05377851,68288.0,68287.0,1.29675768]
[1722130415792,0.05377851,68288.0,68287.0,1.39675768]
[1722130415998,0.05377851,68288.0,68287.0,1.41975768]
[1722130416203,0.00826,68288.0,68287.0,1.43075768]
[1722130416401,0.00826,68288.0,68287.0,1.41975768]
[1722130416806,0.05402623,68288.0,68287.0,1.43075768]
[1722130417647,0.05402623,68288.0,68287.0,1.41975768]
[1722130417850,0.05402623,68288.0,68287.0,1.43375768]
[1722130418068,0.05402623,68288.0,68287.0,1.42275768]
[1722130418412,0.05402623,68288.0,68287.0,1.43675768]
[1722130419467,0.00826,68288.0,68287.0,1.43675768]
[1722130419944,0.05366608,68288.0,68287.0,1.43675768]
[1722130422824,0.05379224,68288.0,68287.0,1.43675768]
[1722130423432,0.00826,68288.0,68287.0,1.43675768]
[1722130424049,0.00826,68288.0,68287.0,1.42275768]
[1722130424712,0.00826,68288.0,68287.0,1.43675768]
[1722130426415,0.00826,68297.0,68296.0,1.054233]
[1722130426597,0.00826,68297.0,68296.0,1.76007466]
[1722130426885,0.00826,68297.0,68296.0,1.44160066]
[1722130427040,0.00826,68297.0,68296.0,1.52580066]
[1722130427248,0.00826,68297.0,68296.0,1.76007466]
[1722130427867,0.00826,68297.0,68296.0,1.77007466]
[1722130428271,0.00826,68297.0,68296.0,1.77607466]
[1722130428477,0.00826,68297.0,68296.0,1.78507466]
[1722130428653,0.00826,68297.0,68296.0,1.77907466]
[1722130429097,0.00826,68297.0,68296.0,1.78907466]
[1722130431668,0.00826,68297.0,68296.0,1.415733]
[1722130431923,0.00826,68297.0,68296.0,1.405733]
[1722130432185,0.00826,68297.0,68296.0,1.409733]
[1722130432378,0.00826,68297.0,68296.0,1.400733]
[1722130432647,0.00826,68297.0,68296.0,1.437733]
[1722130433225,0.00826,68297.0,68296.0,1.68087024]
[1722130436769,0.00826,68297.0,68296.0,1.59667024]
[1722130436925,0.00826,68297.0,68296.0,1.44659624]
[1722130441041,0.00826,68297.0,68296.0,1.36239624]
[1722130441247,0.00826,68297.0,68296.0,1.44659624]
[1722130443756,0.00826,68297.0,68296.0,1.29829624]
[1722130444746,0.00826,68297.0,68296.0,0.72254824]
[1722130444958,0.00826,68297.0,68296.0,0.95682224]
[1722130445153,0.00826,68297.0,68296.0,1.04102224]
[1722130446358,0.00826,68297.0,68296.0,1.12192224]
[1722130450635,0.00826,68297.0,68296.0,1.03772224]
[1722130450836,0.00826,68297.0,68296.0,1.04102224]
[1722130451077,0.06866,68297.0,68296.0,1.04102224]
[1722130452079,0.06866,68297.0,68296.0,0.95682224]
[1722130452333,0.06866,68297.0,68296.0,1.04102224]
[1722130453901,0.06866,68297.0,68296.0,0.95682224]
[1722130454109,0.06866,68297.0,68296.0,1.04102224]
[1722130455350,0.06866,68297.0,68296.0,0.028]
[1722130455545,0.1469142,68297.0,68296.0,0.145137]
[1722130455769,0.18423067,68297.0,68296.0,0.379411]
[1722130455947,0.18267647,68297.0,68296.0,0.028]
[1722130456274,0.18267647,68297.0,68296.0,0.145137]
[1722130457680,0.18305048,68297.0,68296.0,0.613685]
[1722130459240,0.18305048,68297.0,68296.0,0.697885]
[1722130459437,0.14536,68297.0,68296.0,0.697885]
[1722130461355,0.00826,68297.0,68296.0,0.697885]
[1722130462208,0.00826,68297.0,68296.0,0.683885]
[1722130462595,0.00826,68297.0,68296.0,0.676885]
[1722130463055,0.00826,68297.0,68296.0,0.684885]
[1722130463578,0.00826,68297.0,68296.0,0.676885]
[1722130463956,0.00826,68297.0,68296.0,0.684885]
[1722130464487,0.00826,68297.0,68296.0,0.677885]
[1722130464694,0.00826,68297.0,68296.0,0.684885]
[1722130465792,0.00826,68297.0,68296.0,0.760085]
[1722130467342,0.00826,68297.0,68296.0,0.994359]
[1722130472581,0.00826,68297.0,68296.0,1.017359]
[1722130476508,0.00826,68297.0,68296.0,0.994359]
[1722130489207,0.00826,68297.0,68296.0,0.600685]
[1722130491035,0.00826,68297.0,68296.0,0.366411]
[1722130491231,0.04408647,68297.0,68296.0,0.366411]
[1722130491431,0.04408647,68297.0,68296.0,0.514111]
[1722130491636,0.04408647,68297.0,68296.0,0.748385]
[1722130491792,0.00826,68297.0,68296.0,0.748385]
[1722130491997,0.00826,68297.0,68296.0,0.982659]
[1722130493287,0.00826,68297.0,68296.0,1.36719257]
[1722130493598,0.00826,68297.0,68296.0,1.39019257]
[1722130493807,0.00826,68297.0,68296.0,1.15591857]
[1722130494193,0.00826,68297.0,68296.0,0.982659]
[1722130502536,0.00826,68297.0,68296.0,0.600685]
[1722130503227,0.0442657,68297.0,68296.0,0.600685]
[1722130503637,0.0360057,68297.0,68296.0,0.600685]
[1722130503840,0.0644,68299.0,68296.0,0.600685]
[1722130503841,0.0644,68299.0,68297.0,0.46854]
[1722130504064,0.035902,68298.0,68297.0,0.585675]
[1722130505062,0.035902,68298.0,68297.0,0.590675]
[1722130505357,0.035902,68298.0,68297.0,0.596675]
[1722130505584,0.035902,68298.0,68297.0,0.591675]
[1722130505992,0.035902,68298.0,68297.0,1.34748666]
[1722130506149,0.035902,68298.0,68297.0,1.57575666]
[1722130506352,0.002,68299.0,68298.0,0.819934]
[1722130506628,0.002,68299.0,68298.0,0.981934]
[1722130506819,0.002,68299.0,68298.0,1.216201]
[1722130508857,0.002,68299.0,68298.0,1.221201]
[1722130509336,0.002,68299.0,68298.0,1.226201]
[1722130511554,0.00825,68309.0,68303.0,0.819875]
[1722130511759,0.00825,68309.0,68303.0,0.981875]
[1722130514128,0.00825,68309.0,68303.0,1.042775]
[1722130516637,0.00825,68309.0,68303.0,1.050775]
[1722130517370,0.0802,68305.0,68303.0,0.921075]
[1722130518146,0.0656,68307.0,68303.0,0.921075]
[1722130520028,0.0656,68307.0,68303.0,0.93001635]
[1722130521818,0.15406,68304.0,68303.0,0.37731635]
[1722130522011,0.189549,68304.0,68303.0,0.368375]
[1722130522169,0.189549,68304.0,68303.0,0.602625]
[1722130522373,0.1813039,68304.0,68303.0,0.602625]
[1722130522763,0.1813039,68304.0,68303.0,0.368375]
[1722130522967,0.18144434,68304.0,68303.0,0.368375]
[1722130523384,0.18144434,68304.0,68303.0,0.452575]
[1722130524233,0.03564434,68304.0,68303.0,0.686825]
[1722130524826,0.02739434,68304.0,68303.0,0.452575]
[1722130525023,0.02739434,68304.0,68303.0,0.686825]
[1722130525612,0.0015542,68306.0,68305.0,0.351364]
[1722130526314,0.0656,68307.0,68306.0,0.35136]
[1722130526507,0.0656,68307.0,68306.0,0.43556]
[1722130527727,0.0656,68307.0,68306.0,0.44056]
[1722130528452,0.0656,68307.0,68306.0,0.44556]
[1722130529418,0.0656,68307.0,68306.0,0.01]
[1722130529419,0.0671542,68307.0,68306.0,0.01]
[1722130529616,0.2644722,68307.0,68306.0,0.01]
[1722130530849,0.1473542,68307.0,68306.0,0.01]
[1722130531070,0.1458,68307.0,68306.0,0.01]
[1722130531298,0.1473542,68307.0,68306.0,0.01]
[1722130531507,0.15653079,68307.0,68306.0,0.01]
[1722130531794,0.15808499,68307.0,68306.0,0.01]
[1722130532209,0.15653079,68307.0,68306.0,0.01]
[1722130532546,0.19090971,68307.0,68306.0,0.01]
[1722130532740,0.19090968,68307.0,68306.0,0.01]
[1722130533377,0.19186189,68307.0,68306.0,0.01]
[1722130533878,0.19090968,68307.0,68306.0,0.01]
[1722130534079,0.192032,68307.0,68306.0,0.01]
[1722130534276,0.19090968,68307.0,68306.0,0.01]
[1722130534524,0.19204865,68307.0,68306.0,0.01]
[1722130534728,0.19092913,68307.0,68306.0,0.01]
[1722130534906,0.19190608,68307.0,68306.0,0.01]
[1722130535106,0.19092913,68307.0,68306.0,0.01]
[1722130535387,0.15805249,68307.0,68306.0,0.01]
[1722130535618,0.19093147,68307.0,68306.0,0.01]
[1722130536125,0.19198256,68307.0,68306.0,0.01]
[1722130536325,0.19093147,68307.0,68306.0,0.01]
[1722130539013,0.19098429,68307.0,68306.0,0.01]
[1722130539443,0.19098429,68307.0,68306.0,0.12712]
[1722130539692,0.19098429,68307.0,68306.0,0.01]
[1722130541450,0.77657429,68307.0,68306.0,0.01]
[1722130541654,0.30810229,68307.0,68306.0,0.01]
[1722130542089,0.27364879,68307.0,68306.0,0.01]
[1722130542251,0.30757306,68307.0,68306.0,0.01]
[1722130542445,0.92630463,68307.0,68306.0,0.005]
[1722130542651,0.49089,68300.0,68299.0,0.000924]
[1722130542905,0.98640185,68300.0,68299.0,0.000924]
[1722130543224,0.75214185,68300.0,68299.0,0.000924]
[1722130543597,0.98640185,68300.0,68299.0,0.000924]
[1722130544007,0.75214185,68300.0,68299.0,0.000924]
[1722130544204,0.68467317,68300.0,68299.0,0.000924]
[1722130544577,0.68471687,68300.0,68299.0,0.000924]
[1722130545218,0.45045687,68300.0,68299.0,0.000924]
[1722130545443,0.3332312,68300.0,68299.0,0.000924]
[1722130546704,0.4503612,68300.0,68299.0,0.000924]
[1722130548530,0.3732612,68300.0,68299.0,0.000924]
[1722130548825,0.37297676,68300.0,68299.0,0.000924]
[1722130548938,0.37302642,68300.0,68299.0,0.000924]
[1722130551042,0.19349642,68300.0,68299.0,0.000924]
[1722130551299,0.04323685,68300.0,68299.0,0.000924]
[1722130551423,0.04323685,68300.0,68299.0,0.261456]
[1722130551784,0.03364119,68300.0,68299.0,0.964248]
[1722130552009,0.00825,68309.0,68305.0,0.234243]
[1722130552212,0.18468965,68308.0,68307.0,0.117118]
[1722130552366,0.15986028,68308.0,68306.0,0.117119]
[1722130552564,0.03443004,68307.0,68306.0,0.117119]
[1722130553020,0.04402782,68307.0,68306.0,0.11691863]
[1722130553164,0.04402782,68307.0,68305.0,0.117121]
[1722130553523,0.03443004,68306.0,68305.0,0.117121]
[1722130553722,0.0440249,68306.0,68305.0,0.117121]
[1722130554401,0.00959486,68306.0,68305.0,0.727207]
[1722130554622,0.04401637,68306.0,68305.0,0.726207]
[1722130554802,0.00825,68309.0,68308.0,0.351349]
[1722130555419,0.04238525,68309.0,68308.0,0.351349]
[1722130556003,0.04238525,68309.0,68308.0,0.352349]
[1722130556543,0.04238525,68309.0,68308.0,0.353349]
[1722130556914,0.04238525,68309.0,68308.0,0.002]
[1722130557120,0.05100613,68309.0,68308.0,0.002]
[1722130557321,0.05100613,68309.0,68308.0,0.0773]
[1722130558220,0.2012657,68309.0,68308.0,0.002]
[1722130558468,0.34984445,68309.0,68308.0,0.002]
[1722130558614,0.92635589,68309.0,68308.0,0.002]
[1722130558801,1.07625563,68309.0,68308.0,0.002]
[1722130559253,1.31048463,68309.0,68308.0,0.002]
[1722130560926,1.21086124,68309.0,68308.0,0.002]
[1722130561124,1.30923512,68309.0,68308.0,0.002]
[1722130561587,1.21086124,68309.0,68308.0,0.002]
[1722130561741,1.30924521,68309.0,68308.0,0.002]
[1722130562352,0.99988642,68309.0,68308.0,0.002]
[1722130563696,1.00005783,68309.0,68308.0,0.002]
[1722130563861,1.00005556,68309.0,68308.0,0.002]
[1722130567278,0.99980964,68309.0,68308.0,0.002]
[1722130567812,0.85100964,68309.0,68308.0,0.002]
[1722130569244,0.91660964,68309.0,68308.0,0.002]
[1722130570975,0.91629362,68309.0,68308.0,0.002]
[1722130571712,0.00825,68311.0,68309.0,0.00031602]
[1722130571713,0.36790281,68310.0,68309.0,0.00031602]
[1722130571852,0.7604586,68310.0,68309.0,0.00031602]
[1722130572048,0.9946846,68310.0,68309.0,0.00031602]
[1722130573888,0.9946846,68310.0,68309.0,0.00131602]
[1722130574403,0.9946846,68310.0,68309.0,0.00231602]
[1722130574606,1.0417846,68310.0,68309.0,0.00231602]
[1722130577308,1.19204417,68310.0,68309.0,0.00231602]
[1722130577510,1.52627017,68310.0,68309.0,0.00231602]
[1722130578294,1.3760106,68310.0,68309.0,0.00231602]
[1722130578506,1.3760106,68310.0,68309.0,0.00131602]
[1722130579271,1.38570445,68310.0,68309.0,0.00131602]
[1722130579747,1.40691878,68310.0,68309.0,0.00131602]
[1722130580158,1.38570445,68310.0,68309.0,0.00131602]
[1722130580358,1.41591901,68310.0,68309.0,0.00231602]
[1722130580533,1.50208563,68310.0,68309.0,0.002]
[1722130580743,1.50202528,68310.0,68309.0,0.002]
[1722130581071,1.40685866,68310.0,68309.0,0.001]
[1722130581265,1.40685866,68310.0,68309.0,0.002]
[1722130581266,1.42085866,68310.0,68309.0,0.002]